[Event "December 5 Late 2023"]
[Site "https://www.chess.com"]
[Date "2023.12.05"]
[Round "9"]
[White "Desideri, Ricardo Maruchi"]
[Black "Burke, Paul"]
[Result "1-0"]
[Board "117"]
[TimeControl "180+1"]
[WhiteFideId "2110440"]
[BlackFideId "2605767"]
[WhiteElo "2015"]
[BlackElo "1802"]
[WhiteTeam "BRA"]
[BlackTeam "CAN"]
[WhiteClock "0:00:50"]
[BlackClock "0:00:08"]

1. e4 {[%clk 0:02:59]}  e5 {[%clk 0:02:59]} 2. Nf3 {[%clk 0:02:57]}  Nc6 {[%clk 0:02:59]} 3. Bc4 {[%clk 0:02:53]}  Be7 {[%clk 0:02:58]} 4. c3 {[%clk 0:02:46]}  Nf6 {[%clk 0:02:57]} 5. d3 {[%clk 0:02:46]}  O-O {[%clk 0:02:57]} 6. O-O {[%clk 0:02:46]}  d6 {[%clk 0:02:57]} 7. a4 {[%clk 0:02:41]}  Bg4 {[%clk 0:02:55]} 8. Nbd2 {[%clk 0:02:40]}  Qd7 {[%clk 0:02:53]} 9. Re1 {[%clk 0:02:39]}  Rae8 {[%clk 0:02:41]} 10. Nf1 {[%clk 0:02:39]}  d5 {[%clk 0:02:36]} 11. exd5 {[%clk 0:02:34]}  Nxd5 {[%clk 0:02:35]} 12. Nxe5 {[%clk 0:02:30]}  Nxe5 {[%clk 0:02:23]} 13. f3 {[%clk 0:02:27]}  Nxc4 {[%clk 0:01:20]} 14. dxc4 {[%clk 0:02:24]}  Nf6 {[%clk 0:01:20]} 15. fxg4 {[%clk 0:02:23]}  Bc5+ {[%clk 0:01:11]} 16. Kh1 {[%clk 0:02:23]}  Rxe1 {[%clk 0:01:01]} 17. Qxe1 {[%clk 0:02:23]}  Nxg4 {[%clk 0:01:01]} 18. b4 {[%clk 0:01:42]}  Nf2+ {[%clk 0:00:49]} 19. Kg1 {[%clk 0:01:40]}  Nd3+ {[%clk 0:00:48]} 20. Qe3 {[%clk 0:01:32]}  Bxe3+ {[%clk 0:00:45]} 21. Bxe3 {[%clk 0:01:32]}  Ne5 {[%clk 0:00:40]} 22. Bd4 {[%clk 0:01:33]}  Nxc4 {[%clk 0:00:37]} 23. Rd1 {[%clk 0:01:30]}  Qg4 {[%clk 0:00:31]} 24. Re1 {[%clk 0:01:25]}  Nd6 {[%clk 0:00:23]} 25. Ne3 {[%clk 0:01:21]}  Qg6 {[%clk 0:00:18]} 26. Nd5 {[%clk 0:01:16]}  Qc2 {[%clk 0:00:15]} 27. Ne7+ {[%clk 0:01:10]}  Kh8 {[%clk 0:00:14]} 28. Rf1 {[%clk 0:01:02]}  Ne4 {[%clk 0:00:13]} 29. Nf5 {[%clk 0:00:57]}  Rg8 {[%clk 0:00:10]} 30. Nh6 {[%clk 0:00:52]}  Nxc3 {[%clk 0:00:08]} 31. Nxf7# {[%clk 0:00:50]} 1-0

[Event "December 5 Late 2023"]
[Site "https://www.chess.com"]
[Date "2023.12.05"]
[Round "9"]
[White "Seletsky, Grigory"]
[Black "Vargas, Mauricio"]
[Result "1-0"]
[Board "118"]
[TimeControl "180+1"]
[WhiteFideId "14112191"]
[BlackFideId "4404572"]
[WhiteElo "2482"]
[BlackElo "1823"]
[WhiteTeam "UKR"]
[BlackTeam "COL"]
[WhiteClock "0:00:11"]
[BlackClock "0:00:00"]

1. e4 {[%clk 0:01:24]}  d5 {[%clk 0:03:00]} 2. Nc3 {[%clk 0:01:23]}  d4 {[%clk 0:03:00]} 3. Nce2 {[%clk 0:01:20]}  c5 {[%clk 0:03:00]} 4. Ng3 {[%clk 0:01:20]}  h5 {[%clk 0:02:59]} 5. Bb5+ {[%clk 0:01:17]}  Bd7 {[%clk 0:02:53]} 6. Bxd7+ {[%clk 0:01:18]}  Qxd7 {[%clk 0:02:53]} 7. d3 {[%clk 0:01:16]}  h4 {[%clk 0:02:50]} 8. Nf1 {[%clk 0:01:17]}  e5 {[%clk 0:02:38]} 9. h3 {[%clk 0:01:12]}  Nc6 {[%clk 0:02:29]} 10. Nd2 {[%clk 0:01:10]}  b5 {[%clk 0:02:28]} 11. a4 {[%clk 0:01:09]}  bxa4 {[%clk 0:02:19]} 12. Rxa4 {[%clk 0:01:09]}  Nb4 {[%clk 0:02:16]} 13. Ra1 {[%clk 0:01:08]}  f6 {[%clk 0:02:01]} 14. Nc4 {[%clk 0:01:08]}  Qe6 {[%clk 0:01:43]} 15. f4 {[%clk 0:01:08]}  exf4 {[%clk 0:01:35]} 16. Bxf4 {[%clk 0:01:05]}  g5 {[%clk 0:01:33]} 17. Bd2 {[%clk 0:01:02]}  Nd5 {[%clk 0:01:13]} 18. Qe2 {[%clk 0:00:54]}  Nc7 {[%clk 0:00:41]} 19. Nf3 {[%clk 0:00:52]}  Bd6 {[%clk 0:00:35]} 20. O-O {[%clk 0:00:51]}  Bg3 {[%clk 0:00:30]} 21. Bxg5 {[%clk 0:00:47]}  fxg5 {[%clk 0:00:27]} 22. Nxg5 {[%clk 0:00:47]}  Qe7 {[%clk 0:00:16]} 23. Qg4 {[%clk 0:00:41]}  Nf6 {[%clk 0:00:13]} 24. Qf5 {[%clk 0:00:40]}  O-O {[%clk 0:00:11]} 25. Qg6+ {[%clk 0:00:24]}  Qg7 {[%clk 0:00:11]} 26. Qxg7+ {[%clk 0:00:23]}  Kxg7 {[%clk 0:00:11]} 27. Rf5 {[%clk 0:00:19]}  Kg6 {[%clk 0:00:11]} 28. Nf3 {[%clk 0:00:17]}  Ne6 {[%clk 0:00:06]} 29. Nfe5+ {[%clk 0:00:17]}  Kg7 {[%clk 0:00:05]} 30. Raf1 {[%clk 0:00:18]}  Rae8 {[%clk 0:00:03]} 31. Nc6 {[%clk 0:00:15]}  Rc8 {[%clk 0:00:02]} 32. Nxa7 {[%clk 0:00:15]}  Rc7 {[%clk 0:00:02]} 33. Nb5 {[%clk 0:00:15]}  Rcf7 {[%clk 0:00:02]} 34. Nbd6 {[%clk 0:00:14]}  Ra7 {[%clk 0:00:00]} 35. R5f3 {[%clk 0:00:11]} 1-0

[Event "December 5 Late 2023"]
[Site "https://www.chess.com"]
[Date "2023.12.05"]
[Round "10"]
[White "Carlsen, Magnus"]
[Black "Duda, Jan-Krzysztof"]
[Result "1-0"]
[Board "1"]
[TimeControl "180+1"]
[WhiteFideId "1503014"]
[BlackFideId "1170546"]
[WhiteElo "3319"]
[BlackElo "3067"]
[WhiteTeam "NOR"]
[BlackTeam "POL"]
[WhiteClock "0:00:14"]
[BlackClock "0:00:00"]

1. e4 {[%clk 0:03:00]}  c5 {[%clk 0:03:00]} 2. Nf3 {[%clk 0:03:00]}  d6 {[%clk 0:03:00]} 3. Bc4 {[%clk 0:03:00]}  Nf6 {[%clk 0:02:59]} 4. d3 {[%clk 0:03:00]}  Nc6 {[%clk 0:02:59]} 5. O-O {[%clk 0:03:00]}  e6 {[%clk 0:02:55]} 6. Bb3 {[%clk 0:02:58]}  Na5 {[%clk 0:02:52]} 7. Ba4+ {[%clk 0:02:57]}  Bd7 {[%clk 0:02:52]} 8. Bxd7+ {[%clk 0:02:57]}  Qxd7 {[%clk 0:02:53]} 9. Re1 {[%clk 0:02:56]}  Nc6 {[%clk 0:02:52]} 10. c3 {[%clk 0:02:56]}  Be7 {[%clk 0:02:51]} 11. Nbd2 {[%clk 0:02:56]}  O-O {[%clk 0:02:51]} 12. Nf1 {[%clk 0:02:55]}  b5 {[%clk 0:02:49]} 13. Ng3 {[%clk 0:02:51]}  Rfc8 {[%clk 0:02:45]} 14. a3 {[%clk 0:02:49]}  a5 {[%clk 0:02:31]} 15. d4 {[%clk 0:02:48]}  cxd4 {[%clk 0:02:30]} 16. cxd4 {[%clk 0:02:48]}  a4 {[%clk 0:02:23]} 17. d5 {[%clk 0:02:14]}  exd5 {[%clk 0:02:16]} 18. exd5 {[%clk 0:02:15]}  Na5 {[%clk 0:02:16]} 19. Nd4 {[%clk 0:02:14]}  Bf8 {[%clk 0:01:48]} 20. Qf3 {[%clk 0:02:11]}  Nc4 {[%clk 0:01:34]} 21. Bf4 {[%clk 0:01:54]}  Rc5 {[%clk 0:01:13]} 22. Ndf5 {[%clk 0:01:50]}  Re8 {[%clk 0:01:05]} 23. h3 {[%clk 0:01:32]}  Rxd5 {[%clk 0:00:52]} 24. Bg5 {[%clk 0:01:20]}  Ne5 {[%clk 0:00:51]} 25. Rxe5 {[%clk 0:00:53]}  Rdxe5 {[%clk 0:00:35]} 26. Bxf6 {[%clk 0:00:50]}  gxf6 {[%clk 0:00:34]} 27. Kh2 {[%clk 0:00:50]}  d5 {[%clk 0:00:29]} 28. Rd1 {[%clk 0:00:50]}  Kh8 {[%clk 0:00:27]} 29. Rd4 {[%clk 0:00:49]}  Rxf5 {[%clk 0:00:10]} 30. Nxf5 {[%clk 0:00:50]}  Re5 {[%clk 0:00:10]} 31. Ne3 {[%clk 0:00:48]}  Qe6 {[%clk 0:00:10]} 32. Nxd5 {[%clk 0:00:42]}  Rf5 {[%clk 0:00:10]} 33. Nf4 {[%clk 0:00:29]}  Bd6 {[%clk 0:00:10]} 34. g3 {[%clk 0:00:29]}  Bxf4 {[%clk 0:00:10]} 35. Rd8+ {[%clk 0:00:21]}  Kg7 {[%clk 0:00:10]} 36. gxf4 {[%clk 0:00:21]}  Kh6 {[%clk 0:00:03]} 37. Rg8 {[%clk 0:00:17]}  Qc4 {[%clk 0:00:00]} 38. Rg4 {[%clk 0:00:14]} 1-0

[Event "December 5 Late 2023"]
[Site "https://www.chess.com"]
[Date "2023.12.05"]
[Round "10"]
[White "Aronian, Levon"]
[Black "Bluebaum, Matthias"]
[Result "1-0"]
[Board "2"]
[TimeControl "180+1"]
[WhiteFideId "13300474"]
[BlackFideId "24651516"]
[WhiteElo "3114"]
[BlackElo "3032"]
[WhiteTeam "USA"]
[BlackTeam "GER"]
[WhiteClock "0:00:53"]
[BlackClock "0:00:02"]

1. d4 {[%clk 0:03:00]}  d5 {[%clk 0:03:00]} 2. c4 {[%clk 0:03:00]}  e6 {[%clk 0:03:00]} 3. Nf3 {[%clk 0:03:00]}  Nf6 {[%clk 0:03:01]} 4. e3 {[%clk 0:03:01]}  Bd6 {[%clk 0:02:58]} 5. c5 {[%clk 0:03:00]}  Be7 {[%clk 0:02:58]} 6. b4 {[%clk 0:03:01]}  O-O {[%clk 0:02:58]} 7. a4 {[%clk 0:02:57]}  b6 {[%clk 0:02:54]} 8. Ba3 {[%clk 0:02:57]}  c6 {[%clk 0:02:45]} 9. Nbd2 {[%clk 0:02:57]}  Nbd7 {[%clk 0:02:44]} 10. Rc1 {[%clk 0:02:51]}  bxc5 {[%clk 0:02:42]} 11. dxc5 {[%clk 0:02:51]}  e5 {[%clk 0:02:38]} 12. Be2 {[%clk 0:02:46]}  Qc7 {[%clk 0:02:34]} 13. O-O {[%clk 0:02:44]}  Rd8 {[%clk 0:02:32]} 14. Nb3 {[%clk 0:02:39]}  Nf8 {[%clk 0:02:28]} 15. b5 {[%clk 0:02:37]}  Ng6 {[%clk 0:02:23]} 16. Bb4 {[%clk 0:02:34]}  Qd7 {[%clk 0:01:57]} 17. Na5 {[%clk 0:02:10]}  Bb7 {[%clk 0:01:51]} 18. Bc3 {[%clk 0:01:54]}  d4 {[%clk 0:01:06]} 19. exd4 {[%clk 0:01:54]}  Qc7 {[%clk 0:01:07]} 20. Nc4 {[%clk 0:01:45]}  Bxc5 {[%clk 0:01:03]} 21. Ncxe5 {[%clk 0:01:36]}  cxb5 {[%clk 0:00:56]} 22. Ba1 {[%clk 0:01:30]}  Ne4 {[%clk 0:00:29]} 23. Nxg6 {[%clk 0:01:28]}  hxg6 {[%clk 0:00:30]} 24. Qc2 {[%clk 0:01:26]}  Qf4 {[%clk 0:00:12]} 25. dxc5 {[%clk 0:01:24]}  Rac8 {[%clk 0:00:11]} 26. axb5 {[%clk 0:01:21]}  Rxc5 {[%clk 0:00:11]} 27. Qb2 {[%clk 0:01:21]}  f6 {[%clk 0:00:04]} 28. Rxc5 {[%clk 0:01:19]}  Nxc5 {[%clk 0:00:05]} 29. Qa3 {[%clk 0:01:18]}  Ne4 {[%clk 0:00:05]} 30. Qe7 {[%clk 0:01:11]}  Rb8 {[%clk 0:00:04]} 31. Rd1 {[%clk 0:01:10]}  Ng5 {[%clk 0:00:04]} 32. Nxg5 {[%clk 0:01:01]}  Qxg5 {[%clk 0:00:05]} 33. Bf1 {[%clk 0:01:01]}  Bd5 {[%clk 0:00:02]} 34. Qc5 {[%clk 0:00:55]}  Bf7 {[%clk 0:00:01]} 35. Qxg5 {[%clk 0:00:53]}  fxg5 {[%clk 0:00:02]} 1-0

[Event "December 5 Late 2023"]
[Site "https://www.chess.com"]
[Date "2023.12.05"]
[Round "10"]
[White "Deac, Bogdan-Daniel"]
[Black "Oparin, Grigoriy"]
[Result "1/2-1/2"]
[Board "3"]
[TimeControl "180+1"]
[WhiteFideId "1226380"]
[BlackFideId "24125890"]
[WhiteElo "3017"]
[BlackElo "3065"]
[WhiteTeam "ROU"]
[BlackTeam "USA"]
[WhiteClock "0:00:04"]
[BlackClock "0:01:04"]

1. Nf3 {[%clk 0:03:00]}  Nf6 {[%clk 0:02:58]} 2. c4 {[%clk 0:03:00]}  e6 {[%clk 0:02:57]} 3. g3 {[%clk 0:03:00]}  d5 {[%clk 0:02:58]} 4. Bg2 {[%clk 0:03:01]}  Be7 {[%clk 0:02:58]} 5. d4 {[%clk 0:03:01]}  O-O {[%clk 0:02:57]} 6. O-O {[%clk 0:03:01]}  dxc4 {[%clk 0:02:57]} 7. Qc2 {[%clk 0:03:02]}  a6 {[%clk 0:02:57]} 8. a4 {[%clk 0:03:01]}  Bd7 {[%clk 0:02:57]} 9. Qxc4 {[%clk 0:03:01]}  Bc6 {[%clk 0:02:57]} 10. Bf4 {[%clk 0:03:01]}  Bd6 {[%clk 0:02:56]} 11. Qc1 {[%clk 0:03:01]}  Nbd7 {[%clk 0:02:56]} 12. Nc3 {[%clk 0:02:58]}  b5 {[%clk 0:02:55]} 13. Rd1 {[%clk 0:02:52]}  b4 {[%clk 0:02:48]} 14. Nb1 {[%clk 0:02:50]}  Bd5 {[%clk 0:02:43]} 15. Ne5 {[%clk 0:02:50]}  Bxg2 {[%clk 0:02:37]} 16. Kxg2 {[%clk 0:02:50]}  Nd5 {[%clk 0:02:36]} 17. Nd3 {[%clk 0:02:07]}  Nxf4+ {[%clk 0:02:31]} 18. Nxf4 {[%clk 0:02:06]}  Qe7 {[%clk 0:02:20]} 19. Qc6 {[%clk 0:01:09]}  Bxf4 {[%clk 0:02:17]} 20. gxf4 {[%clk 0:01:08]}  Qd6 {[%clk 0:02:18]} 21. Qf3 {[%clk 0:00:40]}  c5 {[%clk 0:02:10]} 22. e3 {[%clk 0:00:40]}  c4 {[%clk 0:01:54]} 23. Nd2 {[%clk 0:00:39]}  Rac8 {[%clk 0:01:55]} 24. Rdc1 {[%clk 0:00:32]}  c3 {[%clk 0:01:40]} 25. bxc3 {[%clk 0:00:25]}  bxc3 {[%clk 0:01:41]} 26. Ne4 {[%clk 0:00:24]}  Qb4 {[%clk 0:01:42]} 27. Rab1 {[%clk 0:00:15]}  Qa5 {[%clk 0:01:35]} 28. Rb7 {[%clk 0:00:09]}  Nb6 {[%clk 0:01:30]} 29. Rxc3 {[%clk 0:00:06]}  Rxc3 {[%clk 0:01:11]} 30. Nxc3 {[%clk 0:00:06]}  Nxa4 {[%clk 0:01:12]} 31. Nxa4 {[%clk 0:00:05]}  Qxa4 {[%clk 0:01:13]} 32. Ra7 {[%clk 0:00:04]}  Qb5 {[%clk 0:01:04]} 1/2-1/2

[Event "December 5 Late 2023"]
[Site "https://www.chess.com"]
[Date "2023.12.05"]
[Round "10"]
[White "Miladinovic, Igor"]
[Black "Xiong, Jeffery"]
[Result "1/2-1/2"]
[Board "4"]
[TimeControl "180+1"]
[WhiteFideId "4203380"]
[BlackFideId "2047640"]
[WhiteElo "2860"]
[BlackElo "3033"]
[WhiteTeam "SRB"]
[BlackTeam "USA"]
[WhiteClock "0:02:13"]
[BlackClock "0:02:13"]

1. d4 {[%clk 0:03:00]}  d5 {[%clk 0:02:59]} 2. Bf4 {[%clk 0:03:00]}  Nf6 {[%clk 0:02:56]} 3. e3 {[%clk 0:03:00]}  e6 {[%clk 0:02:54]} 4. Bd3 {[%clk 0:02:56]}  c5 {[%clk 0:02:54]} 5. dxc5 {[%clk 0:02:55]}  Bxc5 {[%clk 0:02:52]} 6. Nf3 {[%clk 0:02:56]}  Nc6 {[%clk 0:02:48]} 7. O-O {[%clk 0:02:56]}  Qe7 {[%clk 0:02:44]} 8. Nc3 {[%clk 0:02:56]}  h6 {[%clk 0:02:42]} 9. e4 {[%clk 0:02:55]}  d4 {[%clk 0:02:36]} 10. Na4 {[%clk 0:02:50]}  e5 {[%clk 0:02:36]} 11. Nxc5 {[%clk 0:02:47]}  Qxc5 {[%clk 0:02:36]} 12. Bd2 {[%clk 0:02:45]}  O-O {[%clk 0:02:32]} 13. a3 {[%clk 0:02:42]}  Qe7 {[%clk 0:02:30]} 14. Qe2 {[%clk 0:02:33]}  Be6 {[%clk 0:02:27]} 15. Nh4 {[%clk 0:02:31]}  Nxe4 {[%clk 0:02:11]} 16. Qxe4 {[%clk 0:02:25]}  f5 {[%clk 0:02:11]} 17. Nxf5 {[%clk 0:02:21]}  Bxf5 {[%clk 0:02:12]} 18. Qd5+ {[%clk 0:02:19]}  Be6 {[%clk 0:02:12]} 19. Qe4 {[%clk 0:02:18]}  Bf5 {[%clk 0:02:13]} 20. Qd5+ {[%clk 0:02:17]}  Be6 {[%clk 0:02:12]} 21. Qe4 {[%clk 0:02:13]}  Bf5 {[%clk 0:02:13]} 1/2-1/2

[Event "December 5 Late 2023"]
[Site "https://www.chess.com"]
[Date "2023.12.05"]
[Round "10"]
[White "Nakamura, Hikaru"]
[Black "Martinez Alcantara, Jose Eduardo"]
[Result "1-0"]
[Board "5"]
[TimeControl "180+1"]
[WhiteFideId "2016192"]
[BlackFideId "3805662"]
[WhiteElo "3224"]
[BlackElo "2989"]
[WhiteTeam "USA"]
[BlackTeam "PER"]
[WhiteClock "0:00:05"]
[BlackClock "0:00:03"]

1. e4 {[%clk 0:03:00]}  c5 {[%clk 0:03:00]} 2. d4 {[%clk 0:02:56]}  cxd4 {[%clk 0:02:59]} 3. c3 {[%clk 0:02:57]}  d3 {[%clk 0:02:54]} 4. Bxd3 {[%clk 0:02:56]}  d6 {[%clk 0:02:55]} 5. c4 {[%clk 0:02:57]}  Nf6 {[%clk 0:02:55]} 6. Nf3 {[%clk 0:02:57]}  e6 {[%clk 0:02:55]} 7. O-O {[%clk 0:02:56]}  Be7 {[%clk 0:02:56]} 8. Nc3 {[%clk 0:02:52]}  O-O {[%clk 0:02:56]} 9. Qe2 {[%clk 0:02:49]}  a6 {[%clk 0:02:53]} 10. b3 {[%clk 0:02:45]}  Nbd7 {[%clk 0:02:51]} 11. Bb2 {[%clk 0:02:44]}  Qc7 {[%clk 0:02:50]} 12. Nd4 {[%clk 0:02:39]}  b6 {[%clk 0:02:46]} 13. f3 {[%clk 0:02:39]}  Bb7 {[%clk 0:02:46]} 14. Kh1 {[%clk 0:02:39]}  Rac8 {[%clk 0:02:46]} 15. Rfd1 {[%clk 0:02:38]}  Rfe8 {[%clk 0:02:46]} 16. Qf2 {[%clk 0:02:37]}  Qb8 {[%clk 0:02:44]} 17. Rac1 {[%clk 0:02:30]}  Bf8 {[%clk 0:02:37]} 18. Bf1 {[%clk 0:02:29]}  h6 {[%clk 0:02:37]} 19. Nc2 {[%clk 0:02:25]}  Bc6 {[%clk 0:02:33]} 20. Rd2 {[%clk 0:02:15]}  Nc5 {[%clk 0:02:21]} 21. Rcd1 {[%clk 0:02:15]}  Ba8 {[%clk 0:02:12]} 22. Qg1 {[%clk 0:02:12]}  Bc6 {[%clk 0:02:11]} 23. Ne2 {[%clk 0:02:11]}  Ncd7 {[%clk 0:02:05]} 24. Ne3 {[%clk 0:02:11]}  Ba8 {[%clk 0:01:57]} 25. Qf2 {[%clk 0:02:00]}  Qc7 {[%clk 0:01:55]} 26. Ng3 {[%clk 0:01:57]}  Bc6 {[%clk 0:01:51]} 27. Nc2 {[%clk 0:01:56]}  Bb7 {[%clk 0:01:47]} 28. Ne3 {[%clk 0:01:53]}  Bc6 {[%clk 0:01:47]} 29. Bd4 {[%clk 0:01:51]}  Bb7 {[%clk 0:01:44]} 30. Rc2 {[%clk 0:01:49]}  Bc6 {[%clk 0:01:44]} 31. Rdc1 {[%clk 0:01:45]}  Bb7 {[%clk 0:01:43]} 32. Nd1 {[%clk 0:01:43]}  Bc6 {[%clk 0:01:42]} 33. Nc3 {[%clk 0:01:44]}  Qb8 {[%clk 0:01:40]} 34. Qd2 {[%clk 0:01:43]}  Ba8 {[%clk 0:01:37]} 35. Bf2 {[%clk 0:01:43]}  Bc6 {[%clk 0:01:37]} 36. Nge2 {[%clk 0:01:44]}  Be7 {[%clk 0:01:36]} 37. Rd1 {[%clk 0:01:39]}  Red8 {[%clk 0:01:36]} 38. Rcc1 {[%clk 0:01:39]}  Ba8 {[%clk 0:01:36]} 39. Nd4 {[%clk 0:01:38]}  Nc5 {[%clk 0:01:35]} 40. b4 {[%clk 0:01:37]}  Ncd7 {[%clk 0:01:35]} 41. Nb3 {[%clk 0:01:37]}  Ne5 {[%clk 0:01:27]} 42. Na4 {[%clk 0:01:34]}  Nfd7 {[%clk 0:01:27]} 43. Qe1 {[%clk 0:01:31]}  g5 {[%clk 0:01:20]} 44. Be3 {[%clk 0:01:29]}  Kh7 {[%clk 0:01:13]} 45. Qf2 {[%clk 0:01:29]}  b5 {[%clk 0:01:06]} 46. cxb5 {[%clk 0:01:30]}  axb5 {[%clk 0:01:07]} 47. Nc3 {[%clk 0:01:30]}  Nc4 {[%clk 0:01:01]} 48. Nd4 {[%clk 0:01:20]}  Nxe3 {[%clk 0:00:50]} 49. Qxe3 {[%clk 0:01:21]}  Ne5 {[%clk 0:00:51]} 50. Ncxb5 {[%clk 0:01:20]}  h5 {[%clk 0:00:47]} 51. Rxc8 {[%clk 0:01:14]}  Rxc8 {[%clk 0:00:48]} 52. Rc1 {[%clk 0:01:14]}  Rxc1 {[%clk 0:00:39]} 53. Qxc1 {[%clk 0:01:14]}  d5 {[%clk 0:00:39]} 54. Qc7 {[%clk 0:01:10]}  Qxc7 {[%clk 0:00:26]} 55. Nxc7 {[%clk 0:01:11]}  Bb7 {[%clk 0:00:27]} 56. exd5 {[%clk 0:01:11]}  Bxb4 {[%clk 0:00:23]} 57. dxe6 {[%clk 0:01:11]}  fxe6 {[%clk 0:00:24]} 58. Ba6 {[%clk 0:01:04]}  Bd5 {[%clk 0:00:16]} 59. Nxd5 {[%clk 0:01:04]}  exd5 {[%clk 0:00:17]} 60. Bb7 {[%clk 0:01:05]}  Bc3 {[%clk 0:00:17]} 61. Ne6 {[%clk 0:01:00]}  d4 {[%clk 0:00:17]} 62. Nxg5+ {[%clk 0:01:00]}  Kh6 {[%clk 0:00:16]} 63. Ne4 {[%clk 0:01:00]}  Bb4 {[%clk 0:00:16]} 64. Kg1 {[%clk 0:00:50]}  d3 {[%clk 0:00:16]} 65. Kf2 {[%clk 0:00:48]}  d2 {[%clk 0:00:13]} 66. Ke2 {[%clk 0:00:48]}  Nd3 {[%clk 0:00:13]} 67. Nxd2 {[%clk 0:00:28]}  Nf4+ {[%clk 0:00:12]} 68. Kd1 {[%clk 0:00:28]}  Nxg2 {[%clk 0:00:13]} 69. Nc4 {[%clk 0:00:28]}  Kg5 {[%clk 0:00:07]} 70. a4 {[%clk 0:00:27]}  Kh4 {[%clk 0:00:06]} 71. Bc8 {[%clk 0:00:20]}  Kg5 {[%clk 0:00:07]} 72. a5 {[%clk 0:00:20]}  Bc5 {[%clk 0:00:07]} 73. a6 {[%clk 0:00:18]}  Nh4 {[%clk 0:00:05]} 74. Ke2 {[%clk 0:00:13]}  Kf4 {[%clk 0:00:05]} 75. Bb7 {[%clk 0:00:12]}  Nf5 {[%clk 0:00:06]} 76. Kd3 {[%clk 0:00:10]}  Nh4 {[%clk 0:00:06]} 77. Nd2 {[%clk 0:00:10]}  Ba7 {[%clk 0:00:06]} 78. Ke2 {[%clk 0:00:07]}  Nf5 {[%clk 0:00:07]} 79. Nb3 {[%clk 0:00:06]}  Nd4+ {[%clk 0:00:02]} 80. Nxd4 {[%clk 0:00:06]}  Bxd4 {[%clk 0:00:03]} 81. Kd3 {[%clk 0:00:06]}  Ba7 {[%clk 0:00:04]} 82. Kc4 {[%clk 0:00:07]}  Ke5 {[%clk 0:00:04]} 83. Kb5 {[%clk 0:00:06]}  Kd6 {[%clk 0:00:04]} 84. f4 {[%clk 0:00:06]}  Be3 {[%clk 0:00:01]} 85. f5 {[%clk 0:00:05]}  Ke5 {[%clk 0:00:02]} 86. Bc8 {[%clk 0:00:05]}  Kd6 {[%clk 0:00:02]} 87. f6 {[%clk 0:00:03]}  h4 {[%clk 0:00:02]} 88. f7 {[%clk 0:00:03]}  Ke7 {[%clk 0:00:03]} 89. Be6 {[%clk 0:00:03]}  h3 {[%clk 0:00:03]} 90. Kc6 {[%clk 0:00:04]}  Bg1 {[%clk 0:00:03]} 91. Kb7 {[%clk 0:00:04]}  Bxh2 {[%clk 0:00:04]} 92. a7 {[%clk 0:00:04]}  Bb8 {[%clk 0:00:04]} 93. axb8=Q {[%clk 0:00:04]}  h2 {[%clk 0:00:03]} 94. f8=Q+ {[%clk 0:00:05]} 1-0

[Event "December 5 Late 2023"]
[Site "https://www.chess.com"]
[Date "2023.12.05"]
[Round "10"]
[White "Firouzja, Alireza"]
[Black "Terry, Renato"]
[Result "1-0"]
[Board "6"]
[TimeControl "180+1"]
[WhiteFideId "12573981"]
[BlackFideId "3803457"]
[WhiteElo "3154"]
[BlackElo "2984"]
[WhiteTeam "FRA"]
[BlackTeam "PER"]
[WhiteClock "0:00:35"]
[BlackClock "0:00:00"]

1. e4 {[%clk 0:03:00]}  e6 {[%clk 0:03:00]} 2. d4 {[%clk 0:03:01]}  d5 {[%clk 0:03:00]} 3. e5 {[%clk 0:03:01]}  c5 {[%clk 0:03:00]} 4. c3 {[%clk 0:03:02]}  Qb6 {[%clk 0:03:00]} 5. Nf3 {[%clk 0:03:02]}  Bd7 {[%clk 0:03:01]} 6. Be2 {[%clk 0:03:03]}  cxd4 {[%clk 0:03:01]} 7. cxd4 {[%clk 0:03:03]}  Bb5 {[%clk 0:03:01]} 8. Bxb5+ {[%clk 0:03:02]}  Qxb5 {[%clk 0:03:02]} 9. Nc3 {[%clk 0:03:03]}  Qd7 {[%clk 0:02:54]} 10. O-O {[%clk 0:03:02]}  Nc6 {[%clk 0:02:54]} 11. Be3 {[%clk 0:03:01]}  Nge7 {[%clk 0:02:54]} 12. Rc1 {[%clk 0:03:01]}  Nf5 {[%clk 0:02:54]} 13. Bf4 {[%clk 0:02:56]}  h5 {[%clk 0:02:50]} 14. Bg5 {[%clk 0:02:56]}  Be7 {[%clk 0:02:43]} 15. Bxe7 {[%clk 0:02:56]}  Qxe7 {[%clk 0:02:44]} 16. Ne2 {[%clk 0:02:56]}  h4 {[%clk 0:02:31]} 17. h3 {[%clk 0:02:55]}  g5 {[%clk 0:02:26]} 18. Qd2 {[%clk 0:02:55]}  Rg8 {[%clk 0:02:23]} 19. Nh2 {[%clk 0:02:56]}  O-O-O {[%clk 0:02:23]} 20. Ng4 {[%clk 0:02:56]}  Kb8 {[%clk 0:02:23]} 21. Rc3 {[%clk 0:02:56]}  Rg6 {[%clk 0:02:14]} 22. Rfc1 {[%clk 0:02:56]}  Nh6 {[%clk 0:02:14]} 23. Nxh6 {[%clk 0:02:36]}  Rxh6 {[%clk 0:02:15]} 24. b4 {[%clk 0:02:32]}  Qxb4 {[%clk 0:01:25]} 25. Qxg5 {[%clk 0:02:31]}  Rhh8 {[%clk 0:01:25]} 26. Rb3 {[%clk 0:02:31]}  Qa4 {[%clk 0:01:24]} 27. Qf4 {[%clk 0:02:23]}  Rd7 {[%clk 0:01:13]} 28. Rc2 {[%clk 0:02:07]}  Ka8 {[%clk 0:01:10]} 29. Qf6 {[%clk 0:02:06]}  Rh7 {[%clk 0:00:37]} 30. Qg5 {[%clk 0:01:59]}  Rh8 {[%clk 0:00:35]} 31. Qg7 {[%clk 0:01:53]}  Rhd8 {[%clk 0:00:33]} 32. Qg4 {[%clk 0:01:48]}  a6 {[%clk 0:00:31]} 33. Qxh4 {[%clk 0:01:43]}  Nxe5 {[%clk 0:00:25]} 34. Qf6 {[%clk 0:01:42]}  Nc6 {[%clk 0:00:21]} 35. h4 {[%clk 0:01:42]}  e5 {[%clk 0:00:18]} 36. dxe5 {[%clk 0:01:39]}  d4 {[%clk 0:00:19]} 37. Rd2 {[%clk 0:01:39]}  d3 {[%clk 0:00:18]} 38. Nf4 {[%clk 0:01:38]}  Qe4 {[%clk 0:00:14]} 39. Rbxd3 {[%clk 0:01:18]}  Rxd3 {[%clk 0:00:13]} 40. Rxd3 {[%clk 0:01:19]}  Rxd3 {[%clk 0:00:12]} 41. Nxd3 {[%clk 0:01:20]}  Qxd3 {[%clk 0:00:13]} 42. Qxf7 {[%clk 0:01:20]}  Qd1+ {[%clk 0:00:04]} 43. Kh2 {[%clk 0:01:21]}  Qd4 {[%clk 0:00:05]} 44. f4 {[%clk 0:01:19]}  Qf2 {[%clk 0:00:04]} 45. Kh3 {[%clk 0:01:12]}  Nd4 {[%clk 0:00:03]} 46. Qf8+ {[%clk 0:01:01]}  Ka7 {[%clk 0:00:03]} 47. Qc5+ {[%clk 0:01:01]}  Ka8 {[%clk 0:00:02]} 48. e6 {[%clk 0:01:02]}  Qxf4 {[%clk 0:00:02]} 49. e7 {[%clk 0:01:01]}  Qe3+ {[%clk 0:00:02]} 50. g3 {[%clk 0:01:02]}  Qe4 {[%clk 0:00:02]} 51. Qc8+ {[%clk 0:01:00]}  Ka7 {[%clk 0:00:02]} 52. e8=Q {[%clk 0:01:00]}  Qh1+ {[%clk 0:00:03]} 53. Kg4 {[%clk 0:01:01]}  Qf3+ {[%clk 0:00:03]} 54. Kg5 {[%clk 0:01:01]}  Qxg3+ {[%clk 0:00:04]} 55. Qg4 {[%clk 0:00:57]}  Qc3 {[%clk 0:00:02]} 56. Qee4 {[%clk 0:00:49]}  Nc6 {[%clk 0:00:01]} 57. Qg1+ {[%clk 0:00:41]}  Ka8 {[%clk 0:00:01]} 58. Qe8+ {[%clk 0:00:41]}  Nb8 {[%clk 0:00:02]} 59. Qge3 {[%clk 0:00:41]}  Qg7+ {[%clk 0:00:02]} 60. Kf5 {[%clk 0:00:40]}  Qh7+ {[%clk 0:00:02]} 61. Kg4 {[%clk 0:00:41]}  Qg7+ {[%clk 0:00:02]} 62. Kh3 {[%clk 0:00:41]}  Qa1 {[%clk 0:00:02]} 63. Qf4 {[%clk 0:00:35]}  Qh1+ {[%clk 0:00:01]} 64. Kg4 {[%clk 0:00:35]}  Qg2+ {[%clk 0:00:02]} 65. Kh5 {[%clk 0:00:36]}  Qd5+ {[%clk 0:00:00]} 66. Kh6 {[%clk 0:00:35]} 1-0